{"text_format":"2","workbook":"xlsx","n_sheets":2,"sheets":["Magyar MA","x"],"not_rendered":{"charts":0,"images":0,"macros":0,"external_links":1,"defined_names":3,"comments":0,"pivot_tables":0},"unopened":[],"bounds":{"document_bytes":16777216,"sheet_cells":100000,"run_cost":"one","rows_first":2000,"rows_last":500,"rows_between":2000,"halvings":0,"cell_chars":16384,"cell_head_chars":4096},"cells_cut":0,"cells_raw":0,"read":"whole","date_system":"1900"}

{"sheet":"Magyar MA","index":0,"n_rows":49,"n_cols":28,"rows_kept":49,"cut":false,"hidden":false,"merged":[[0,0,0,1],[0,7,0,19],[0,25,0,27],[46,7,46,8],[47,7,47,8]]}
["Magyar nyelv és irodalom MA_AN 2018 (MAG-M-AN 2018)  (felelős: Szilágyi Zsófia)",{"$nulls":6},"krediteloszlás",{"$nulls":17},"előkövetelmény"]
["kód","mérföldkő/tárgycsoport/tárgy","típus","követ.","felv.","óra","kredit","0.","1.","2.","3.","4.","5.","6.","7.","8.","9.","10.","11.","12.","össz.","mindössz.","tantárgyfelelős","beosztás","hirdető tanszék/intézet","végleges id. telj.","végleges id. felv.","előzetes v.felt."]
["MK-A","Alapozó ismeretek",{"$nulls":4},6,{"$nulls":13},{"$f":"SUM(H4:T5)","v":6},{"$f":"SUM(U3)","v":6}]
["MAG-MA-A1","Nyelvtudomány és társtudományok","ea","koll","köt",2,3,{"$nulls":7},3,{"$nulls":7},"Sipőcz Katalin","egyetemi docens","Finnugor Nyelvtudományi Tanszék"]
["MAG-MA-A2","A nyelv- és irodalomtudomány intézményrendszere","ea","koll","köt",2,3,{"$nulls":7},3,{"$nulls":7},"Gere Zsolt","egyetemi adjunktus","Magyar Irodalmi Tanszék"]
["MK-T","Törzsképzés",{"$nulls":4},48,{"$nulls":14},{"$f":"SUM(U7:U24)","v":48}]
["MAG-MA-NY","Nyelvészet",null,null,"köt",null,24,{"$nulls":13},{"$f":"SUM(H8:T15)","v":24}]
["MAG-MA-NY1","A beszéd tudománya","ea","koll","köt",2,3,{"$nulls":7},3,{"$nulls":7},"Hoffmann Ildikó","egyetemi docens","Magyar Nyelvészeti Tanszék"]
["MAG-MA-NY2","A szöveg szerkezete és hangzása","szem","gyj","köt",2,3,{"$nulls":7},3,{"$nulls":7},"Schirm Anita","egyetemi adjunktus","Magyar Nyelvészeti Tanszék"]
["MAG-MA-NY3","Fonetika, fonológia, morfológia","ea","koll","köt",2,3,{"$nulls":7},3,{"$nulls":7},"Zsigri Gyula","egyetemi docens","Magyar Nyelvészeti Tanszék"]
["MAG-MA-NY4","Mondat- és szövegelemzési gyakorlatok","szem","gyj","köt",2,3,{"$nulls":8},3,{"$nulls":6},"Schirm Anita","egyetemi adjunktus","Magyar Nyelvészeti Tanszék"]
["MAG-MA-NY5","Nyelvjárástan és szociolingvisztika","ea","koll","köt",2,3,{"$nulls":7},3,{"$nulls":7},"Németh Miklós","egyetemi docens","Magyar Nyelvészeti Tanszék"]
["MAG-MA-NY6","A magyar nyelv történeti változásai az egyes nyelvi szinteken","szem","gyj","köt",2,3,{"$nulls":9},3,{"$nulls":5},"Forgács Tamás","egyetemi docens","Magyar Nyelvészeti Tanszék"]
["MAG-MA-NY7","A nyelvtudomány irányzatai","ea","koll","köt",2,3,{"$nulls":8},3,{"$nulls":6},"Sinkovics Balázs","egyetemi adjunktus","Magyar Nyelvészeti Tanszék"]
["MAG-MA-NY8","Kötelezően választható nyelvészeti szeminárium","szem","gyj","köt",2,3,{"$nulls":10},3,{"$nulls":4},"Hoffmann Ildikó","egyetemi docens","Magyar Nyelvészeti Tanszék"]
["MAG-MA-IT","Irodalomtudomány",null,null,"köt",null,24,{"$nulls":13},{"$f":"SUM(H17:T24)","v":24}]
["MAG-MA-IT1","Szoros olvasás","szem","gyj","köt",2,3,{"$nulls":7},3,{"$nulls":7},"Szilágyi Zsófia","egyetemi tanár","Magyar Irodalmi Tanszék"]
["MAG-MA-IT2","Szöveggondozás és kritikatörténet","szem","gyj","köt",2,3,{"$nulls":8},3,{"$nulls":6},"Szilágyi Zsófia","egyetemi tanár","Magyar Irodalmi Tanszék"]
["MAG-MA-IT3","Kutatásmódszertan","szem","gyj","köt",2,3,{"$nulls":8},3,{"$nulls":6},"Gere Zsolt","egyetemi adjunktus","Magyar Irodalmi Tanszék"]
["MAG-MA-IT4","Kritika- és tanulmányírás","szem","gyj","köt",2,3,{"$nulls":10},3,{"$nulls":4},"Szilágyi Zsófia","egyetemi tanár","Magyar Irodalmi Tanszék"]
["MAG-MA-IT5","Retorika, poétika, esztétika","szem","gyj","köt",2,3,{"$nulls":7},3,{"$nulls":7},"Fogarasi György","egyetemi docens","Összehasonlító Irodalomtudományi Tanszék"]
["MAG-MA-IT6","Irodalom és kultúra","szem","gyj","köt",2,3,{"$nulls":8},3,{"$nulls":6},"Kelemen Zoltán","egyetemi docens","Összehasonlító Irodalomtudományi Tanszék"]
["MAG-MA-IT7","Az irodalomtudomány diszkurzív alakzatai ea","ea","koll","köt",2,3,{"$nulls":7},3,{"$nulls":7},"Török Ervin","egyetemi adjunktus","Vizuális Kultúra és Irodalomelmélet Tanszék"]
["MAG-MA-IT8","Az irodalomtudomány diszkurzív alakzatai sz","szem","gyj","köt",2,3,{"$nulls":9},3,{"$nulls":5},"Török Ervin","egyetemi adjunktus","Vizuális Kultúra és Irodalomelmélet Tanszék"]
["MK-SZV","Szabadon választható kurzusok",null,null,"köt",null,6,{"$nulls":13},{"$f":"SUM(G25)","v":6},{"$f":"SUM(U25)","v":6}]
["MAVÁL1","Választható bölcsészettudományi stúdium","ea","koll","köt vál",2,2,2]
["MAG-MA-SZV1","Szabadon választható nyelvészeti szeminárium","szem","gyj","köt vál",2,3,3]
["MAG-MA-SZV2","Szabadon választható irodalmi szeminárium","szem","gyj","köt vál",2,3,3]
[null,"Központi szabadon választható",null,null,null,2,2,2]
["MK-SZD","Szakdolgozat",null,null,"köt",null,20,{"$nulls":13},{"$f":"SUM(G30)","v":20},{"$f":"SUM(U30)","v":20}]
["MAG-MA-SZD1","Szakdolgozati szeminárium 1","szem","gyj","köt",2,10,{"$nulls":9},10]
["MAG-MA-SZD2","Szakdolgozati szeminárium 2","szem","gyj","köt",2,10,{"$nulls":10},10]
["MK-KÜL","Különbözeti tárgyak",null,null,"köt",null,0,{"$nulls":13},{"$f":"SUM(G33:T33)","v":0},{"$f":"SUM(U33)","v":0}]
["MAG-MA-KÜL1","Különbözeti nyelvészet előadás","ea","koll",null,2,0,0]
["MAG-MA-KÜL2","Különbözeti nyelvészet szeminárium","szem","gyj",null,2,0,0]
["MAG-MA-KÜL3","Különbözeti irodalom  előadás","ea","koll",null,2,0,0]
["MAG-MA-KÜL4","Különbözeti irodalom szeminárium","szem","gyj",null,2,0,0]
["MK-S","Specializáció",{"$nulls":4},40,{"$nulls":13},{"$f":"SUM(H39:T39)","v":40},{"$f":"SUM(U38)","v":40}]
[null,"Specializáció",{"$nulls":13},14,13,13]
[{"$nulls":21},{"$f":"SUM(V3:V39)","v":120}]
[]
[null,null,"félévhez kötött kredit összesen",{"$nulls":11},{"$f":"SUM(O3:O39)","v":27},{"$f":"SUM(P3:P39)","v":29},{"$f":"SUM(Q3:Q39)","v":29},29]
[null,null,"kötvál törzs"]
[null,null,"szabvál",null,null,null,6,{"$nulls":7},3,3]
[null,null,"minden kredit összesen",{"$nulls":5},{"$f":"SUM(I42:I44)","v":0},0,0,0,0,0,30,32,29,29,0,0,{"$f":"SUM(I45:T45)","v":120}]
[]
[null,null,"előadás kredit",null,null,null,{"$f":"SUM(G4:G5,G8,G10,G12,G14,G23)","v":21},{"$f":"G47/G$49","v":0.35}]
[null,null,"szeminárium kredit",null,null,null,{"$f":"SUM(G11,G13,G15,G9,G18,G17,G19,G21,G22,G24,G20,G27,G28)","v":39},{"$f":"G48/G$49","v":0.65},null,null,"(60-70%)"]
[null,null,"ea.+szem. kredit",null,null,null,{"$f":"SUM(G47:G48)","v":60}]

{"sheet":"x","index":1,"n_rows":8,"n_cols":4,"rows_kept":8,"cut":false,"hidden":true,"merged":[]}
["beosztás",null,null,"tanszék"]
["egyetemi adjunktus",null,null,"Általános Nyelvészeti Tanszék"]
["egyetemi docens",null,null,"Finnugor Nyelvtudományi Tanszék"]
["egyetemi tanár",null,null,"Magyar Irodalmi Tanszék"]
["egyetemi tanársegéd",null,null,"Magyar Nyelvészeti Tanszék"]
[null,null,null,"Magyar Nyelvi és Irodalmi Intézet"]
[null,null,null,"Összehasonlító Irodalomtudományi Tanszék"]
[null,null,null,"Vizuális Kultúra és Irodalomelmélet Tanszék"]